lending/lending_fUSD_20250131
["ID","MTS","AMOUNT","RATE_DAILY","PERIOD"]
[351065502,1738323054310,-500.0,0.00016575,2]
[351065503,1738323054321,-500.0,0.00016575,2]
[351065504,1738323054330,-500.0,0.00016575,2]
[351065505,1738323054339,-500.0,0.00016575,2]
[351065506,1738323054349,-500.0,0.00016575,2]
[351065507,1738323054358,-500.0,0.00016575,2]
[351065508,1738323054368,-512.36695146,0.00016575,2]
[351065509,1738323054377,-500.0,0.00016575,2]
[351065510,1738323054389,-506.730571,0.00016575,2]
[351065511,1738323054399,-539.65991964,0.00016575,2]
[351065512,1738323054409,-595.49,0.00016575,2]
[351065513,1738323054417,-500.0,0.00016575,2]
[351065514,1738323054427,-500.0,0.00016575,2]
[351065515,1738323054436,-500.0,0.00016575,2]
[351065516,1738323054446,-500.0,0.00016575,2]
[351065517,1738323054456,-1274.38,0.00016575,2]
[351065518,1738323054465,-500.0,0.00016575,2]
[351065519,1738323054474,-506.85159728,0.00016575,2]
[351065520,1738323054483,-500.0,0.00016575,2]
[351065521,1738323054493,-151.98426675,0.00016575,2]
[351065522,1738323054502,-755.45,0.00016575,2]
[351065523,1738323054511,-500.0,0.00016575,2]
[351065524,1738323054521,-500.0,0.00016575,2]
[351065525,1738323054531,-500.0,0.00016575,2]
[351065526,1738323054540,-503.65864203,0.00016575,2]
[351065527,1738323054549,-500.0,0.00016575,2]
[351065528,1738323054558,-500.0,0.00016575,2]
[351065529,1738323054568,-500.0,0.00016575,2]
[351065530,1738323054578,-500.0,0.00016575,2]
[351065531,1738323054587,-608.6469043,0.00016575,2]
[351065532,1738323054597,-500.0,0.00016575,2]
[351065533,1738323054607,-500.0,0.00016575,2]
[351065534,1738323054616,-500.0,0.00016575,2]
[351065535,1738323054626,-501.20139519,0.00016575,2]
[351065536,1738323054640,-500.0,0.00016575,2]
[351065537,1738323054650,-500.0,0.00016575,2]
[351065538,1738323054659,-190.30869672,0.00016575,2]
[351065539,1738323054668,-500.0,0.00016575,2]
[351065540,1738323054677,-532.66,0.00016575,2]
[351065541,1738323054686,-500.0,0.00016575,2]
[351065542,1738323054695,-912.55,0.00016575,2]
[351065543,1738323054704,-680.03,0.00016575,2]
[351065544,1738323054714,-500.0,0.00016575,2]
[351065545,1738323054723,-500.0,0.00016575,2]
[351065546,1738323054732,-500.0,0.00016575,2]
[351065547,1738323054743,-500.0,0.00016575,2]
[351065548,1738323054752,-500.0,0.00016575,2]
[351065549,1738323054762,-500.0,0.00016575,2]
[351065550,1738323054771,-500.0,0.00016575,2]
[351065551,1738323054781,-500.0,0.00016575,2]
[351065552,1738323054790,-500.0,0.00016575,2]
[351065553,1738323054799,-500.0,0.00016575,2]
[351065554,1738323054809,-500.0,0.00016575,2]
[351065555,1738323054818,-524.48202383,0.00016575,2]
[351065556,1738323054827,-641.79,0.00016575,2]
[351065557,1738323054836,-500.0,0.00016575,2]
[351065558,1738323054846,-500.0,0.00016575,2]
[351065559,1738323054855,-500.0,0.00016575,2]
[351065560,1738323054864,-999.77,0.00016575,2]
[351065561,1738323054874,-505.65964191,0.00016575,2]
[351065562,1738323054886,-500.0,0.00016575,2]
[351065563,1738323054896,-500.0,0.00016575,2]
[351065564,1738323054905,-500.0,0.00016575,2]
[351065565,1738323054915,-500.0,0.00016575,2]
[351065566,1738323054925,-500.0,0.00016575,2]
[351065567,1738323054934,-500.0,0.00016575,2]
[351065568,1738323054943,-712.15,0.00016575,2]
[351065569,1738323054954,-812.58,0.00016575,2]
[351065570,1738323054963,-500.0,0.00016575,2]
[351065571,1738323054973,-503.28201583,0.00016575,2]
[351065572,1738323054984,-500.0,0.00016575,2]
[351065573,1738323054996,-500.0,0.00016575,2]
[351065574,1738323055006,-500.0,0.00016575,2]
[351065575,1738323055016,-500.0,0.00016575,2]
[351065576,1738323055027,-500.0,0.00016575,2]
[351065577,1738323055036,-685.64,0.00016575,2]
[351065578,1738323055046,-923.31,0.00016575,2]
[351065579,1738323055056,-621.16,0.00016575,2]
[351065580,1738323055067,-500.0,0.00016575,2]
[351065581,1738323055076,-500.0,0.00016575,2]
[351065582,1738323055085,-500.0,0.00016575,2]
[351065583,1738323055095,-500.0,0.00016575,2]
[351065584,1738323055104,-500.0,0.00016575,2]
[351065585,1738323055114,-2002.83,0.00016575,2]
[351065586,1738323055124,-500.0,0.00016575,2]
[351065587,1738323055135,-404.28498925,0.00016575,2]
[351065588,1738323055144,-1251.02,0.00016575,2]
[351065589,1738323055155,-1563.52,0.00016575,2]
[351065590,1738323055164,-500.0,0.00016575,2]
[351065591,1738323055173,-500.0,0.00016575,2]
[351065592,1738323055183,-500.0,0.00016575,2]
[351065593,1738323055192,-500.0,0.00016575,2]
[351065594,1738323055202,-500.0,0.00016575,2]
[351065595,1738323055211,-500.0,0.00016575,2]
[351065596,1738323055220,-500.0,0.00016575,2]
[351065597,1738323055231,-500.0,0.00016575,2]
[351065598,1738323055240,-500.0,0.00016575,2]
[351065599,1738323055250,-500.0,0.00016575,2]
[351065600,1738323055259,-542.45,0.00016575,2]
[351065601,1738323055269,-2183.31,0.00016575,2]
[351065602,1738323055278,-500.0,0.00016575,2]
[351065603,1738323055288,-631.52,0.00016575,2]
[351065604,1738323055297,-500.0,0.00016575,2]
[351065605,1738323055306,-500.0,0.00016575,2]
[351065606,1738323055315,-541.14,0.00016575,2]
[351065607,1738323055326,-1559.63,0.00016575,2]
[351065608,1738323055335,-500.0,0.00016575,2]
[351065609,1738323055344,-522.70688065,0.00016575,2]
[351065610,1738323055354,-500.0,0.00016575,2]
[351065611,1738323055363,-808.68,0.00016575,2]
[351065612,1738323055373,-500.0,0.00016575,2]
[351065613,1738323055382,-1089.13,0.00016575,2]
[351065614,1738323055392,-500.0,0.00016575,2]
[351065615,1738323055401,-500.0,0.00016575,2]
[351065616,1738323055410,-500.0,0.00016575,2]
[351065617,1738323055419,-1658.21,0.00016575,2]
[351065618,1738323055429,-524.66,0.00016575,2]
[351065619,1738323055439,-500.0,0.00016575,2]
[351065620,1738323055448,-1446.98,0.00016575,2]
[351065621,1738323055457,-500.7179756,0.00016575,2]
[351065622,1738323055466,-500.0,0.00016575,2]
[351065623,1738323055475,-500.0,0.00016575,2]
[351065624,1738323055485,-500.0,0.00016575,2]
[351065625,1738323055495,-825.0,0.00016575,2]
[351065626,1738323055504,-1082.85,0.00016575,2]
[351065627,1738323055514,-1218.3,0.00016575,2]
[351065628,1738323055523,-500.0,0.00016575,2]
[351065629,1738323055533,-1319.18,0.00016575,2]
[351065630,1738323055542,-1340.29,0.00016575,2]
[351065631,1738323055703,-500.0,0.00016575,2]
[351065632,1738323055718,-500.0,0.00016575,2]
[351065633,1738323055727,-500.0,0.00016575,2]
[351065634,1738323055736,-500.0,0.00016575,2]
[351065635,1738323055745,-824.43,0.00016575,2]
[351065636,1738323055754,-500.0,0.00016575,2]
[351065637,1738323055764,-500.0,0.00016575,2]
[351065638,1738323055774,-906.09,0.00016575,2]
[351065639,1738323055783,-1107.6,0.00016575,2]
[351065640,1738323055792,-500.0,0.00016575,2]
[351065641,1738323055802,-500.0,0.00016575,2]
[351065642,1738323055811,-500.0,0.00016575,2]
[351065643,1738323055820,-500.0,0.00016575,2]
[351065644,1738323055829,-507.56218838,0.00016575,2]
[351065645,1738323055838,-1720.71,0.00016575,2]
[351065646,1738323055847,-528.44855321,0.00016575,2]
[351065647,1738323055857,-500.0,0.00016575,2]
[351065648,1738323055866,-685.52,0.00016575,2]
[351065649,1738323055875,-500.0,0.00016575,2]
[351065650,1738323055886,-169.35464611,0.00016575,2]
[351065651,1738323055895,-500.0,0.00016575,2]
[351065652,1738323055904,-500.0,0.00016575,2]
[351065653,1738323055914,-500.0,0.00016575,2]
[351065654,1738323055923,-500.0,0.00016575,2]
[351065655,1738323055932,-500.0,0.00016575,2]
[351065656,1738323055941,-500.0,0.00016575,2]
[351065657,1738323055951,-500.0,0.00016575,2]
[351065658,1738323055960,-675.93,0.00016575,2]
[351065659,1738323055970,-500.0,0.00016575,2]
[351065660,1738323055982,-517.89,0.00016575,2]
[351065661,1738323055993,-500.0,0.00016575,2]
[351065662,1738323056002,-500.0,0.00016575,2]
[351065663,1738323056011,-500.0,0.00016575,2]
[351065664,1738323056021,-1524.37,0.00016575,2]
[351065665,1738323056031,-952.99,0.00016575,2]
[351065666,1738323056041,-500.0,0.00016575,2]
[351065667,1738323056050,-1065.27,0.00016575,2]
[351065668,1738323056060,-500.0,0.00016575,2]
[351065669,1738323056069,-355.57314937,0.00016575,2]
[351065670,1738323056079,-500.0,0.00016575,2]
[351065671,1738323056088,-540.49,0.00016575,2]
[351065672,1738323056098,-502.63145753,0.00016575,2]
[351065673,1738323056107,-1066.82,0.00016575,2]
[351065674,1738323056117,-500.0,0.00016575,2]
[351065675,1738323056127,-660.13,0.00016575,2]
[351065676,1738323056139,-2110.08,0.00016575,2]
[351065677,1738323056148,-500.0,0.00016575,2]
[351065678,1738323056158,-500.0,0.00016575,2]
[351065679,1738323056167,-500.0,0.00016575,2]
[351065680,1738323056176,-500.0,0.00016575,2]
[351065681,1738323056185,-500.0,0.00016575,2]
[351065682,1738323056195,-500.0,0.00016575,2]
[351065683,1738323056204,-500.0,0.00016575,2]
[351065684,1738323056213,-872.44,0.00016575,2]
[351065685,1738323056222,-500.0,0.00016575,2]
[351065686,1738323056231,-500.0,0.00016575,2]
[351065687,1738323056241,-500.0,0.00016575,2]
[351065688,1738323056250,-500.0,0.00016575,2]
[351065689,1738323056259,-500.0,0.00016575,2]
[351065690,1738323056269,-1188.82,0.00016575,2]
[351065691,1738323056278,-500.0,0.00016575,2]
[351065692,1738323056287,-500.0,0.00016575,2]
[351065693,1738323056296,-500.0,0.00016575,2]
[351065694,1738323056305,-2212.75,0.00016575,2]
[351065695,1738323056314,-207.26145012,0.00016575,2]
[351065696,1738323056324,-453.84188039,0.00016575,2]
[351065697,1738323056333,-508.16130561,0.00016575,2]
[351065698,1738323056342,-636.76544554,0.00016575,2]
[351065699,1738323056351,-500.0,0.00016575,2]
[351065700,1738323056361,-504.60188676,0.00016575,2]
[351065701,1738323056370,-2571.72,0.00016575,2]
[351065702,1738323056379,-500.0,0.00016575,2]
[351065703,1738323056390,-500.0,0.00016575,2]
[351065704,1738323056400,-1396.67,0.00016575,2]
[351065705,1738323056409,-500.0,0.00016575,2]
[351065706,1738323056419,-2264.19,0.00016575,2]
[351065707,1738323056431,-615.04,0.00016575,2]
[351065708,1738323056440,-500.0,0.00016575,2]
[351065709,1738323056450,-500.0,0.00016575,2]
[351065710,1738323056459,-500.0,0.00016575,2]
[351065711,1738323056468,-502.38833184,0.00016575,2]
[351065712,1738323056477,-500.0,0.00016575,2]
[351065713,1738323056487,-502.16327801,0.00016575,2]
[351065714,1738323056496,-500.0,0.00016575,2]
[351065715,1738323056506,-1486.69,0.00016575,2]
[351065716,1738323056515,-452.83576256,0.00016575,2]
[351065717,1738323056525,-500.0,0.00016575,2]
[351065718,1738323056535,-1434.53,0.00016575,2]
[351065719,1738323056545,-585.60331672,0.00016575,2]
[351065720,1738323056554,-500.0,0.00016575,2]
[351065721,1738323056563,-500.0,0.00016575,2]
[351065722,1738323056573,-4002.22,0.00016575,2]
[351065723,1738323056583,-500.0,0.00016575,2]
[351065724,1738323056593,-842.74,0.00016575,2]
[351065725,1738323056603,-500.0,0.00016575,2]
[351065726,1738323056613,-1857.52,0.00016575,2]
[351065727,1738323056622,-500.0,0.00016575,2]
[351065728,1738323056633,-1874.3,0.00016575,2]
[351065729,1738323056643,-500.0,0.00016575,2]
[351065730,1738323056652,-500.0,0.00016575,2]
[351065731,1738323056663,-500.0,0.00016575,2]
[351065732,1738323056673,-2209.64,0.00016575,2]
[351065733,1738323056682,-500.0,0.00016575,2]
[351065734,1738323056691,-1744.69,0.00016575,2]
[351065735,1738323056701,-500.0,0.00016575,2]
[351065736,1738323056711,-500.0,0.00016575,2]
[351065737,1738323056720,-500.0,0.00016575,2]
[351065738,1738323056729,-538.72893517,0.00016575,2]
[351065739,1738323056738,-500.0,0.00016575,2]
[351065740,1738323056747,-1162.31,0.00016575,2]
[351065741,1738323056757,-2054.43,0.00016575,2]
[351065742,1738323056766,-500.0,0.00016575,2]
[351065743,1738323056775,-518.48454262,0.00016575,2]
[351065744,1738323056784,-562.14840904,0.00016575,2]
[351065745,1738323056794,-500.0,0.00016575,2]
[351065746,1738323056804,-500.0,0.00016575,2]
[351065747,1738323056813,-1690.08,0.00016575,2]
[351065748,1738323056822,-500.0,0.00016575,2]
[351065749,1738323056832,-2453.26,0.00016575,2]
[351065750,1738323056841,-2088.93,0.00016575,2]
[351065751,1738323056850,-500.0,0.00016575,2]
[351065752,1738323056859,-500.0,0.00016575,2]
[351065753,1738323056869,-500.0,0.00016575,2]
[351065754,1738323056878,-1384.15,0.00016575,2]
[351065755,1738323056891,-2748.88,0.00016575,2]
[351065756,1738323056900,-500.0,0.00016575,2]
[351065757,1738323056909,-500.0,0.00016575,2]
[351065758,1738323056919,-500.0,0.00016575,2]
[351065759,1738323056928,-1157.73,0.00016575,2]
[351065760,1738323056938,-500.0,0.00016575,2]
[351065761,1738323056947,-500.0,0.00016575,2]
[351065762,1738323056958,-500.0,0.00016575,2]
[351065763,1738323056968,-500.0,0.00016575,2]
[351065764,1738323056979,-500.0,0.00016575,2]
[351065765,1738323056991,-504.73660234,0.00016575,2]
[351065766,1738323057002,-936.11,0.00016575,2]
[351065767,1738323057011,-500.0,0.00016575,2]
[351065768,1738323057021,-500.0,0.00016575,2]
[351065769,1738323057031,-500.0,0.00016575,2]
[351065770,1738323057041,-500.0,0.00016575,2]
[351065771,1738323057050,-783.32,0.00016575,2]
[351065772,1738323057061,-500.0,0.00016575,2]
[351065773,1738323057070,-823.42,0.00016575,2]
[351065774,1738323057080,-500.0,0.00016575,2]
[351065775,1738323057089,-522.93,0.00016575,2]
[351065776,1738323057098,-500.0,0.00016575,2]
[351065777,1738323057107,-500.0,0.00016575,2]
[351065778,1738323057117,-500.0,0.00016575,2]
[351065779,1738323057126,-2972.09,0.00016575,2]
[351065780,1738323057138,-500.0,0.00016575,2]
[351065781,1738323057147,-1094.11,0.00016575,2]
[351065782,1738323057157,-500.0,0.00016575,2]
[351065783,1738323057166,-1747.36,0.00016575,2]
[351065784,1738323057175,-1202.8,0.00016575,2]
[351065785,1738323057185,-500.0,0.00016575,2]
[351065786,1738323057195,-500.0,0.00016575,2]
[351065787,1738323057204,-1325.09,0.00016575,2]
[351065788,1738323057213,-500.0,0.00016575,2]
[351065789,1738323057223,-500.0,0.00016575,2]
[351065790,1738323057232,-500.0,0.00016575,2]
[351065791,1738323057241,-500.0,0.00016575,2]
[351065792,1738323057251,-1401.57,0.00016575,2]
[351065793,1738323057260,-705.87,0.00016575,2]
[351065794,1738323057270,-500.94699344,0.00016575,2]
[351065795,1738323057279,-500.0,0.00016575,2]
[351065796,1738323057289,-500.0,0.00016575,2]
[351065797,1738323057298,-500.0,0.00016575,2]
[351065798,1738323057308,-500.0,0.00016575,2]
[351065799,1738323057318,-959.86,0.00016575,2]
[351065800,1738323057327,-598.63,0.00016575,2]
[351065801,1738323057336,-500.0,0.00016575,2]
[351065802,1738323057345,-500.0,0.00016575,2]
[351065803,1738323057354,-500.0,0.00016575,2]
[351065804,1738323057363,-500.0,0.00016575,2]
[351065805,1738323057373,-500.0,0.00016575,2]
[351065806,1738323057385,-1400.54,0.00016575,2]
[351065807,1738323057394,-500.0,0.00016575,2]
[351065808,1738323057403,-1501.98,0.00016575,2]
[351065809,1738323057413,-1280.35,0.00016575,2]
[351065810,1738323057423,-1680.19,0.00016575,2]
[351065811,1738323057432,-500.0,0.00016575,2]
[351065812,1738323057442,-500.0,0.00016575,2]
[351065813,1738323057451,-536.6,0.00016575,2]
[351065814,1738323057460,-526.79,0.00016575,2]
[351065815,1738323057469,-1004.99,0.00016575,2]
[351065816,1738323057479,-351.30621306,0.00016575,2]
[351065817,1738323057488,-222.73588246,0.00016575,2]
[351065818,1738323057497,-1188.35,0.00016575,2]
[351065819,1738323057506,-529.21,0.00016575,2]
[351065820,1738323057515,-1116.16,0.00016575,2]
[351065821,1738323057524,-500.0,0.00016575,2]
[351065822,1738323057533,-1399.48,0.00016575,2]
[351065823,1738323057543,-234.65062988,0.00016575,2]
[351065824,1738323057552,-500.0,0.00016575,2]
[351065825,1738323057561,-515.44905331,0.00016575,2]
[351065826,1738323057570,-1496.14,0.00016575,2]
[351065827,1738323057579,-500.0,0.00016575,2]
[351065828,1738323057588,-500.0,0.00016575,2]
[351065829,1738323057597,-1080.75,0.00016575,2]
[351065830,1738323057606,-519.51122819,0.00016575,2]
[351065831,1738323057616,-920.99,0.00016575,2]
[351065832,1738323057630,-500.0,0.00016575,2]
[351065833,1738323057643,-500.0,0.00016575,2]
[351065834,1738323057652,-500.0,0.00016575,2]
[351065835,1738323057661,-500.0,0.00016575,2]
[351065836,1738323057671,-524.05,0.00016575,2]
[351065837,1738323057680,-500.0,0.00016575,2]
[351065838,1738323057690,-500.0,0.00016575,2]
[351065839,1738323057699,-500.0,0.00016575,2]
[351065840,1738323057709,-917.77,0.00016575,2]
[351065841,1738323057718,-500.0,0.00016575,2]
[351065842,1738323057728,-500.0,0.00016575,2]
[351065843,1738323057738,-352.83542016,0.00016575,2]
[351065844,1738323057747,-1491.37,0.00016575,2]
[351065845,1738323057756,-500.0,0.00016575,2]
[351065846,1738323057766,-1066.06,0.00016575,2]
[351065847,1738323057775,-500.0,0.00016575,2]
[351065848,1738323057785,-1221.67,0.00016575,2]
[351065849,1738323057794,-715.06,0.00016575,2]
[351065850,1738323057803,-599.94,0.00016575,2]
[351065851,1738323057813,-543.14,0.00016575,2]
[351065852,1738323057823,-2242.55,0.00016575,2]
[351065853,1738323057833,-504.93304718,0.00016575,2]
[351065854,1738323057842,-500.0,0.00016575,2]
[351065855,1738323057852,-967.53,0.00016575,2]
[351065856,1738323057862,-301.2490677,0.00016575,2]
[351065857,1738323057872,-500.0,0.00016575,2]
[351065858,1738323057881,-2304.6,0.00016575,2]
[351065859,1738323057894,-500.0,0.00016575,2]
[351065860,1738323057903,-500.0,0.00016575,2]
[351065861,1738323057913,-674.76,0.00016575,2]
[351065862,1738323057922,-533.79,0.00016575,2]
[351065863,1738323057931,-500.0,0.00016575,2]
[351065864,1738323057941,-512.6880474,0.00016575,2]
[351065865,1738323057950,-691.34,0.00016575,2]
[351065866,1738323057959,-500.0,0.00016575,2]
[351065867,1738323057968,-328.8664736,0.00016575,2]
[351065868,1738323057978,-500.0,0.00016575,2]
[351065869,1738323057990,-655.5,0.00016575,2]
[351065870,1738323057999,-500.0,0.00016575,2]
[351065871,1738323058008,-927.88,0.00016575,2]
[351065872,1738323058017,-500.0,0.00016575,2]
[351065873,1738323058029,-510.59648039,0.00016575,2]
[351065874,1738323058038,-500.0,0.00016575,2]
[351065875,1738323058047,-220.55741672,0.00016575,2]
[351065876,1738323058057,-503.8812828,0.00016575,2]
[351065877,1738323058123,-500.0,0.00016575,2]
[351065878,1738323058135,-1225.27,0.00016575,2]
[351065879,1738323058144,-196.4110995,0.00016575,2]
[351065880,1738323058153,-1232.82,0.00016575,2]
[351065881,1738323058162,-660.11,0.00016575,2]
[351065882,1738323058171,-500.0,0.00016575,2]
[351065883,1738323058181,-505.04050696,0.00016575,2]
[351065884,1738323058190,-500.0,0.00016575,2]
[351065885,1738323058199,-500.0,0.00016575,2]
[351065886,1738323058209,-2677.1,0.00016575,2]
[351065887,1738323058218,-500.0,0.00016575,2]
[351065888,1738323058227,-500.0,0.00016575,2]
[351065889,1738323058237,-2095.21,0.00016575,2]
[351065890,1738323058247,-500.0,0.00016575,2]
[351065891,1738323058256,-500.0,0.00016575,2]
[351065892,1738323058265,-1904.55,0.00016575,2]
[351065893,1738323058274,-500.0,0.00016575,2]
[351065894,1738323058283,-500.0,0.00016575,2]
[351065895,1738323058292,-500.0,0.00016575,2]
[351065896,1738323058302,-500.0,0.00016575,2]
[351065897,1738323058312,-1345.25,0.00016575,2]
[351065898,1738323058321,-799.53,0.00016575,2]
[351065899,1738323058332,-500.0,0.00016575,2]
[351065900,1738323058341,-1324.34,0.00016575,2]
[351065901,1738323058351,-500.0,0.00016575,2]
[351065902,1738323058360,-500.0,0.00016575,2]
[351065903,1738323058370,-500.0,0.00016575,2]
[351065904,1738323058379,-500.0,0.00016575,2]
[351065905,1738323058390,-500.0,0.00016575,2]
[351065906,1738323058399,-500.0,0.00016575,2]
[351065907,1738323058409,-500.0,0.00016575,2]
[351065908,1738323058418,-500.0,0.00016575,2]
[351065909,1738323058427,-500.0,0.00016575,2]
[351065910,1738323058436,-500.0,0.00016575,2]
[351065911,1738323058446,-1071.62,0.00016575,2]
[351065912,1738323058455,-500.0,0.00016575,2]
[351065913,1738323058464,-500.0,0.00016575,2]
[351065914,1738323058475,-500.0,0.00016575,2]
[351065915,1738323058485,-500.0,0.00016575,2]
[351065916,1738323058495,-511.24566691,0.00016575,2]
[351065917,1738323058504,-500.0,0.00016575,2]
[351065918,1738323058514,-799.05,0.00016575,2]
[351065919,1738323058522,-504.10444007,0.00016575,2]
[351065920,1738323058532,-500.0,0.00016575,2]
[351065921,1738323058541,-655.67,0.00016575,2]
[351065922,1738323058550,-500.0,0.00016575,2]
[351065923,1738323058559,-500.0,0.00016575,2]
[351065924,1738323058568,-924.74,0.00016575,2]
[351065925,1738323058578,-500.0,0.00016575,2]
[351065926,1738323058587,-500.0,0.00016575,2]
[351065927,1738323058596,-4098.85,0.00016575,2]
[351065928,1738323058605,-500.0,0.00016575,2]
[351065929,1738323058614,-1415.06,0.00016575,2]
[351065930,1738323058622,-513.48,0.00016575,2]
[351065931,1738323058631,-639.23,0.00016575,2]
[351065932,1738323058644,-1437.94,0.00016575,2]
[351065933,1738323058652,-500.0,0.00016575,2]
[351065934,1738323058661,-500.0,0.00016575,2]
[351065935,1738323058671,-1179.86,0.00016575,2]
[351065936,1738323058679,-718.04,0.00016575,2]
[351065937,1738323058688,-151.0,0.00016575,2]
[351065938,1738323058697,-165.038071,0.00016575,2]
[351065939,1738323058706,-225.433209,0.00016575,2]
[351065940,1738323058715,-500.0,0.00016575,2]
[351065941,1738323058724,-500.0,0.00016575,2]
[351065942,1738323058733,-500.0,0.00016575,2]
[351065943,1738323058742,-834.34,0.00016575,2]
[351065944,1738323058751,-1156.02,0.00016575,2]
[351065945,1738323058760,-500.0,0.00016575,2]
[351065946,1738323058769,-500.0,0.00016575,2]
[351065947,1738323058778,-2167.27,0.00016575,2]
[351065948,1738323058788,-678.8,0.00016575,2]
[351065949,1738323058797,-934.67,0.00016575,2]
[351065950,1738323058806,-773.7,0.00016575,2]
[351065951,1738323058815,-500.0,0.00016575,2]
[351065952,1738323058825,-500.0,0.00016575,2]
[351065953,1738323058834,-500.0,0.00016575,2]
[351065954,1738323058843,-762.18,0.00016575,2]
[351065955,1738323058852,-2800.41,0.00016575,2]
[351065956,1738323058861,-500.0,0.00016575,2]
[351065957,1738323058871,-500.0,0.00016575,2]
[351065958,1738323058880,-500.0,0.00016575,2]
[351065959,1738323058891,-500.0,0.00016575,2]
[351065960,1738323058901,-7193.56,0.00016575,2]
[351065961,1738323058910,-500.0,0.00016575,2]
[351065962,1738323058920,-842.43,0.00016575,2]
[351065963,1738323058929,-2149.68,0.00016575,2]
[351065964,1738323058938,-734.91,0.00016575,2]
[351065965,1738323058947,-2943.67,0.00016575,2]
[351065966,1738323058957,-500.0,0.00016575,2]
[351065967,1738323058967,-500.0,0.00016575,2]
[351065968,1738323058977,-500.0,0.00016575,2]
[351065969,1738323058989,-500.0,0.00016575,2]
[351065970,1738323058998,-851.72,0.00016575,2]
[351065971,1738323059008,-1288.98,0.00016575,2]
[351065972,1738323059018,-500.0,0.00016575,2]
[351065973,1738323059028,-500.0,0.00016575,2]
[351065974,1738323059037,-1500.88,0.00016575,2]
[351065975,1738323059047,-500.0,0.00016575,2]
[351065976,1738323059056,-948.46,0.00016575,2]
[351065977,1738323059066,-500.0,0.00016575,2]
[351065978,1738323059076,-1329.35,0.00016575,2]
[351065979,1738323059086,-500.0,0.00016575,2]
[351065980,1738323059095,-500.0,0.00016575,2]
[351065981,1738323059105,-3834.64,0.00016575,2]
[351065982,1738323059114,-500.0,0.00016575,2]
[351065983,1738323059124,-500.0,0.00016575,2]
[351065984,1738323059134,-924.07,0.00016575,2]
[351065985,1738323059145,-500.0,0.00016575,2]
[351065986,1738323059155,-1040.64,0.00016575,2]
[351065987,1738323059165,-500.0,0.00016575,2]
[351065988,1738323059174,-500.0,0.00016575,2]
[351065989,1738323059184,-500.0,0.00016575,2]
[351065990,1738323059194,-500.0,0.00016575,2]
[351065991,1738323059204,-500.0,0.00016575,2]
[351065992,1738323059213,-1562.87,0.00016575,2]
[351065993,1738323059223,-500.0,0.00016575,2]
[351065994,1738323059233,-1264.17,0.00016575,2]
[351065995,1738323059243,-500.0,0.00016575,2]
[351065996,1738323059254,-1799.72,0.00016575,2]
[351065997,1738323059264,-500.0,0.00016575,2]
[351065998,1738323059275,-6544.06,0.00016575,2]
[351065999,1738323059285,-1156.79,0.00016575,2]
[351066000,1738323059295,-4272.8,0.00016575,2]
[351066001,1738323059305,-500.0,0.00016575,2]